bitfinex/quotes_SOLUSD_20240621
["timestamp","ask_amount","ask_price","bid_price","bid_amount"]
[1719004247400,0.8857401,133.93,133.86,22.51]
[1719004247602,0.8857401,133.93,133.91,5.9738]
[1719004248686,0.8857401,133.93,133.9,5.9744]
[1719004249505,0.8857401,133.93,133.92,5.9737]
[1719004252183,0.8857401,133.93,133.92,28.4837]
[1719004252411,0.8857401,133.93,133.92,28.8237]
[1719004253793,0.8857401,133.93,133.92,48.8237]
[1719004254992,0.8857401,133.93,133.92,93.7737]
[1719004255611,0.11266528,133.94,133.93,88.3663]
[1719004255785,0.11266528,133.94,133.93,88.7063]
[1719004256320,22.8377,134.02,133.98,5.9709]
[1719004256484,28.8058,134.05,133.99,5.9704]
[1719004256888,5.9683,134.04,133.99,5.9704]
[1719004257196,5.9683,134.04,133.98,5.9709]
[1719004257893,5.9683,134.04,133.99,5.9704]
[1719004258097,28.8058,134.05,133.99,5.9704]
[1719004258294,28.8058,134.05,134.0,5.9701]
[1719004258609,22.8377,134.05,134.0,5.9701]
[1719004260323,5.9676,134.06,134.0,5.9701]
[1719004260494,0.8857401,134.07,134.02,5.969]
[1719004261417,6.8528401,134.07,134.01,5.9694]
[1719004262104,0.8857401,134.07,134.02,5.969]
[1719004262628,0.8857401,134.07,134.05,5.9678]
[1719004262793,0.8857401,134.07,134.05,5.9676]
[1719004263321,0.8857401,134.07,134.04,5.9682]
[1719004264023,0.8857401,134.07,134.05,5.9677]
[1719004265593,0.8857401,134.07,134.06,6.1374]
[1719004265929,0.8857401,134.07,134.06,6.3074]
[1719004266413,0.8857401,134.07,134.06,5.9674]
[1719004266724,0.8857401,134.07,134.06,6.3074]
[1719004266887,0.8857401,134.07,134.06,28.8174]
[1719004267717,0.8857401,134.07,134.06,6.3074]
[1719004268033,0.8857401,134.07,134.06,5.9674]
[1719004268321,0.8857401,134.07,134.06,6.3074]
[1719004268698,1.0857401,134.07,134.06,6.3074]
[1719004268896,1.0857401,134.07,134.06,5.9674]
[1719004269111,1.0857401,134.07,134.06,6.3074]
[1719004269836,1.0857401,134.07,134.06,22.51]
[1719004270005,1.0857401,134.07,134.06,5.9674]
[1719004270406,1.0857401,134.07,134.06,28.4774]
[1719004270730,1.0857401,134.07,134.06,43.396]
[1719004270911,1.0857401,134.07,134.06,43.736]
[1719004271113,1.0857401,134.07,134.06,105.1586]
[1719004271330,1.0857401,134.07,134.06,125.1586]
[1719004272335,29.8051,134.21,134.06,125.1586]
[1719004272336,20.9307,134.22,134.11,22.51]
[1719004272516,6.029,134.22,134.12,59.3226]
[1719004272711,20.9302,134.22,134.12,36.8126]
[1719004273034,20.9302,134.22,134.13,5.964]
[1719004273035,5.962,134.19,134.13,5.964]
[1719004274017,5.9611,134.21,134.16,5.9629]
[1719004274215,6.029,134.22,134.12,15.251]
[1719004274216,6.8471401,134.2,134.12,15.251]
[1719004274414,6.8471401,134.2,134.14,5.9636]
[1719004275144,0.8857401,134.2,134.12,37.761]
[1719004275344,0.8857401,134.2,134.15,5.9632]
[1719004275510,0.8857401,134.2,134.15,5.9631]
[1719004275820,6.8470401,134.2,134.14,5.9637]
[1719004276140,0.8857401,134.2,134.15,5.9633]
[1719004276324,6.8469401,134.2,134.14,5.9637]
[1719004276637,0.8857401,134.2,134.15,5.9634]
[1719004277134,0.8857401,134.2,134.14,0.17]
[1719004277341,0.8857401,134.2,134.19,5.9616]
[1719004277846,0.8857401,134.2,134.18,5.9621]
[1719004278149,0.8857401,134.2,134.14,37.7596]
[1719004278316,0.8857401,134.2,134.18,5.962]
[1719004278516,0.8857401,134.2,134.18,5.9621]
[1719004278828,0.8857401,134.2,134.19,5.9616]
[1719004279617,0.8857401,134.2,134.18,5.962]
[1719004280017,0.8857401,134.2,134.19,5.9616]
[1719004285036,0.8857401,134.2,134.19,6.33856564]
[1719004285743,0.8857401,134.2,134.14,22.51]
[1719004286129,0.8857401,134.2,134.13,16.4726]
[1719004286645,0.8857401,134.2,134.15,5.9632]
[1719004286856,0.8857401,134.2,134.14,5.9638]
[1719004287023,6.8471401,134.2,134.15,5.9634]
[1719004287351,6.8471401,134.2,134.14,5.9637]
[1719004287925,5.9617,134.19,134.14,5.9637]
[1719004288551,6.8470401,134.2,134.14,5.9637]
[1719004289946,6.8470401,134.2,134.15,5.9634]
[1719004290157,0.8857401,134.2,134.18,5.9618]
[1719004291235,0.8857401,134.2,134.17,5.9624]
[1719004293723,0.8857401,134.2,134.15,14.9076]
[1719004294044,0.8857401,134.2,134.19,5.9616]
[1719004316087,0.8857401,134.2,134.19,5.92086423]
[1719004327005,0.8857401,134.2,134.18,5.962]
[1719004327182,0.8857401,134.2,134.17,5.9623]
[1719004327379,0.8857401,134.2,134.12,44.9923]
[1719004327602,0.8857401,134.2,134.12,15.1692]
[1719004327784,6.8472401,134.2,134.14,5.9637]
[1719004327985,6.8472401,134.2,134.15,5.9633]
[1719004328214,22.0822,134.19,134.09,44.9997]
[1719004328386,22.0822,134.19,134.1,20.0]
[1719004328586,22.0822,134.19,134.14,5.9637]
[1719004329400,22.0822,134.19,134.15,5.9633]
[1719004329605,22.0822,134.19,134.16,5.963]
[1719004329982,0.8857401,134.2,134.13,44.95]
[1719004330313,0.8857401,134.2,134.19,5.9616]
[1719004337419,0.8857401,134.2,134.17,5.9623]
[1719004337623,6.8469401,134.2,134.13,22.41]
[1719004337789,0.8857401,134.2,134.13,22.41]
[1719004338218,0.8857401,134.2,134.17,5.9624]
[1719004338517,0.8857401,134.2,134.18,5.9621]
[1719004338720,0.8857401,134.2,134.17,5.9624]
[1719004340507,0.8857401,134.2,134.14,14.9089]
[1719004340714,0.8857401,134.2,134.16,5.9629]
[1719004341529,0.8857401,134.2,134.19,5.9616]
[1719004341701,0.8857401,134.2,134.18,5.9619]
[1719004342329,0.8857401,134.2,134.19,5.9616]
[1719004351710,0.8857401,134.2,134.18,5.9619]
[1719004351923,0.8857401,134.2,134.19,5.9616]
[1719004352122,0.8857401,134.2,134.16,14.9073]
[1719004352317,0.8857401,134.2,134.19,5.9616]
[1719004353538,0.8857401,134.2,134.18,5.962]
[1719004354240,0.8857401,134.2,134.19,5.9616]
[1719004357613,0.8857401,134.2,134.19,6.1316]
[1719004359242,0.8857401,134.2,134.19,5.9616]
[1719004362239,0.8857401,134.2,134.19,21.0358]
[1719004363344,0.8857401,134.2,134.19,21.2058]
[1719004366923,0.8857401,134.2,134.19,37.0047]
[1719004367137,0.8857401,134.2,134.19,59.4147]
[1719004367452,4.01e-05,134.2,134.19,124.3647]
[1719004367749,4.01e-05,134.2,134.19,139.30639119]
[1719004368247,22.7783,134.29,134.22,44.95]
[1719004368415,22.7783,134.29,134.26,5.9585]
[1719004368614,22.7783,134.29,134.25,5.9588]
[1719004369415,22.7783,134.29,134.26,5.9585]
[1719004369842,22.7783,134.29,134.2,14.9021]
[1719004370045,22.7783,134.29,134.21,0.17]
[1719004370241,22.7783,134.29,134.25,5.9589]
[1719004372540,22.7783,134.29,134.26,5.9584]
[1719004374229,22.7783,134.29,134.27,5.9581]
[1719004374542,22.7783,134.29,134.26,5.9584]
[1719004375956,22.7783,134.29,134.27,5.9581]
[1719004379052,22.7783,134.29,134.26,5.9583]
[1719004380950,22.7783,134.29,134.27,5.958]
[1719004384461,22.7783,134.29,134.26,5.9584]
[1719004385776,22.487,134.28,134.19,7.835662]
[1719004385931,22.487,134.28,134.15,16.5207]
[1719004385932,5.9597,134.24,134.15,16.5207]
[1719004386138,5.9597,134.24,134.15,31.4285]
[1719004386764,5.959,134.25,134.19,5.9612]
[1719004387337,5.9595,134.24,134.19,5.9612]
[1719004388165,5.9595,134.24,134.18,5.962]
[1719004388536,22.487,134.28,134.21,5.9606]
[1719004390063,5.9588,134.26,134.21,5.9606]
[1719004390245,22.487,134.28,134.24,5.959]
[1719004390440,21.8226,134.31,134.26,5.9585]
[1719004390742,15.8662,134.31,134.24,37.3084]
[1719004390953,15.8662,134.31,134.27,5.9581]
[1719004391465,15.8662,134.31,134.26,5.9584]
[1719004392153,15.8662,134.31,134.26,14.8963]
[1719004392354,6.6208,134.32,134.29,5.9569]
[1719004392766,6.6208,134.32,134.28,5.9575]
[1719004393264,6.6208,134.32,134.27,5.9579]
[1719004393834,6.6208,134.32,134.28,5.9576]
[1719004394262,0.8857401,134.34,134.26,37.3063]
[1719004394441,0.8857401,134.34,134.3,5.9565]
[1719004394765,6.8407401,134.34,134.29,5.957]
[1719004395362,5.9554,134.33,134.28,5.9575]
[1719004395547,0.8857401,134.34,134.25,0.34]
[1719004395548,5.956,134.32,134.27,5.9579]
[1719004395874,5.9556,134.33,134.28,5.9576]
[1719004396361,6.8409401,134.34,134.28,5.9576]
[1719004397756,6.8409401,134.34,134.28,5.9574]
[1719004398161,6.8409401,134.34,134.29,5.9572]
[1719004401652,5.9556,134.33,134.25,67.53]
[1719004401942,0.8857401,134.34,134.26,0.17]
[1719004402669,0.8857401,134.34,134.26,14.8954]
[1719004403273,5.9557,134.33,134.28,5.9574]
[1719004404984,6.8409401,134.34,134.28,5.9574]
[1719004405970,6.8409401,134.34,134.29,5.9572]
[1719004406181,6.8409401,134.34,134.29,5.9571]
[1719004406759,0.8857401,134.34,134.3,5.9566]
[1719004406976,6.8409401,134.34,134.28,5.9573]
[1719004407276,0.8857401,134.34,134.25,22.58]
[1719004407583,0.8857401,134.34,134.31,5.9561]
[1719004409778,0.8857401,134.34,134.3,5.9566]
[1719004411877,0.8857401,134.34,134.26,14.8963]
[1719004412058,5.9558,134.33,134.27,5.9577]
[1719004412878,5.9558,134.33,134.28,5.9575]
[1719004413049,6.4433,134.31,134.27,5.9579]
[1719004413255,6.4433,134.31,134.26,5.9585]
[1719004413256,12.3997,134.31,134.26,5.9585]
[1719004413453,15.5888,134.3,134.26,5.9585]
[1719004413673,15.5888,134.3,134.25,5.9588]
[1719004413983,15.5888,134.3,134.26,5.9585]
[1719004415162,15.5888,134.3,134.25,5.9588]
[1719004415981,15.5888,134.3,134.26,5.9584]
[1719004417390,15.5888,134.3,134.2,14.9028]
[1719004417569,6.4433,134.26,134.22,5.9601]
[1719004419292,6.4433,134.26,134.17,7.467]
[1719004419500,22.5131,134.25,134.2,5.9609]
[1719004419676,16.5539,134.25,134.21,5.9607]
[1719004420077,16.5539,134.25,134.2,5.961]
[1719004420271,22.5131,134.25,134.2,5.961]
[1719004420474,22.5131,134.25,134.19,5.9614]
[1719004421183,22.5131,134.25,134.2,5.9612]
[1719004422278,16.5539,134.25,134.2,5.9612]
[1719004423195,22.5129,134.25,134.2,5.9612]
[1719004424092,16.5539,134.25,134.19,14.9042]
[1719004424284,16.5539,134.25,134.23,5.9596]
[1719004424668,16.5539,134.25,134.22,5.9602]
[1719004425271,16.5539,134.25,134.21,5.9606]
[1719004425574,16.5539,134.25,134.22,5.9603]
[1719004426482,16.5539,134.25,134.23,5.9596]
[1719004427395,16.5539,134.25,134.21,5.9604]
[1719004428283,16.5539,134.25,134.22,5.9602]
[1719004429184,5.96,134.23,134.18,5.9618]
[1719004429590,5.9605,134.22,134.17,5.9624]
[1719004429794,16.5539,134.25,134.14,14.9096]
[1719004429795,31.4517,134.25,134.16,5.9629]
[1719004429970,5.9605,134.22,134.17,5.9624]
[1719004431501,5.9601,134.23,134.17,5.9624]
[1719004432002,16.5539,134.2,134.16,5.9629]
[1719004432183,22.5152,134.2,134.15,5.9632]
[1719004432779,22.5152,134.2,134.11,31.5424]
[1719004432780,12.129,134.19,134.11,31.5424]
[1719004432985,5.9624,134.18,134.12,5.9646]
[1719004433801,5.9624,134.18,134.13,5.9643]
[1719004434182,5.9633,134.16,134.1,5.9652]
[1719004434497,16.5539,134.15,134.07,33.58405748]
[1719004434680,16.5539,134.15,134.11,5.9649]
[1719004434889,16.5539,134.15,134.1,5.9655]
[1719004435091,16.5539,134.15,134.11,5.9651]
[1719004435899,16.5539,134.15,134.12,5.9647]
[1719004436372,16.5539,134.15,134.11,5.9651]
[1719004437601,5.9644,134.13,134.08,5.9664]
[1719004437897,6.1673,134.14,134.09,5.966]
[1719004438077,12.1313,134.14,134.09,5.966]
[1719004438794,6.1673,134.14,134.06,5.9674]
[1719004439012,5.9646,134.13,134.05,11.20595496]
[1719004439384,6.1673,134.14,134.05,11.20595496]
[1719004439385,6.1673,134.14,134.05,18.67295496]
[1719004439684,6.1673,134.14,134.1,5.9654]
[1719004439885,12.1312,134.14,134.09,5.9659]
[1719004440084,6.1673,134.14,134.09,5.9659]
[1719004440508,12.1312,134.14,134.09,5.9659]
[1719004440701,5.9644,134.13,134.08,5.9663]
[1719004441202,6.1673,134.14,134.06,5.9672]
[1719004441505,5.9649,134.12,134.07,5.9668]
[1719004441707,6.1673,134.14,134.08,5.9662]
[1719004441708,12.1315,134.14,134.08,5.9662]
[1719004441911,6.1673,134.14,134.06,82.4596]
[1719004442123,16.5539,134.15,134.1,14.9139]
[1719004442277,16.5539,134.15,134.06,119.7628]
[1719004442474,16.5539,134.15,134.14,5.9639]
[1719004442702,16.5539,134.15,134.12,5.9646]
[1719004443300,16.5539,134.15,134.11,5.9651]
[1719004443506,22.5173,134.15,134.1,5.9655]
[1719004443811,16.5539,134.15,134.11,5.9651]
[1719004444404,16.5539,134.15,134.12,5.9647]
[1719004444588,16.5539,134.15,134.13,5.9642]
[1719004444907,16.5539,134.15,134.12,5.9646]
[1719004445882,16.5539,134.15,134.11,5.9652]
[1719004446081,16.5539,134.15,134.12,5.9646]
[1719004446288,16.5539,134.15,134.11,14.913]
[1719004446713,6.235,134.17,134.14,5.9636]
[1719004447088,6.235,134.17,134.13,5.9642]
[1719004447279,6.235,134.17,134.12,5.9644]
[1719004447720,12.1975,134.17,134.12,5.9644]
[1719004447906,6.235,134.17,134.11,14.913]
[1719004448106,6.235,134.17,134.14,5.9635]
[1719004449712,6.235,134.17,134.13,5.9641]
[1719004452085,5.9631,134.16,134.11,5.9651]
[1719004452710,5.9631,134.16,134.1,5.9655]
[1719004453386,5.9631,134.16,134.11,5.9652]
[1719004458404,12.1977,134.17,134.12,5.9647]
[1719004458609,15.922,134.18,134.13,0.17]
[1719004458965,6.235,134.21,134.2,5.9612]
[1719004459091,15.922,134.22,134.21,5.9608]
[1719004459426,6.2612,134.25,134.22,5.9603]
[1719004460216,6.2612,134.25,134.15,97.0061]
[1719004460419,6.2612,134.25,134.23,5.9598]
[1719004461010,6.2612,134.25,134.22,5.9603]
[1719004461736,21.6911,134.29,134.19,67.19]
[1719004462023,21.6911,134.29,134.18,15.4869]
[1719004462024,21.6911,134.29,134.26,5.9585]
[1719004462222,21.6911,134.29,134.25,5.9588]
[1719004462598,21.6911,134.29,134.24,5.9593]
[1719004462822,5.9593,134.25,134.18,15.4869]
[1719004463052,5.9591,134.25,134.19,5.9615]
[1719004463229,36.5853,134.29,134.2,5.961]
[1719004463429,5.9595,134.24,134.19,5.9616]
[1719004463628,5.96,134.23,134.16,20.0]
[1719004463853,5.96,134.23,134.17,5.9622]
[1719004464358,5.96,134.23,134.18,5.962]
[1719004464736,6.2612,134.23,134.16,20.34]
[1719004465048,6.2612,134.23,134.19,5.9613]
[1719004465348,6.2612,134.23,134.2,5.9612]
[1719004465652,6.2612,134.23,134.19,5.9615]
[1719004466755,12.2212,134.23,134.16,0.17]
[1719004466952,27.6511,134.23,134.17,5.9624]
[1719004467148,21.6911,134.23,134.18,5.9618]
[1719004467356,21.6911,134.23,134.15,15.4869]
[1719004467529,21.6911,134.23,134.16,0.17]
[1719004467732,21.6911,134.23,134.19,5.9616]
[1719004469133,27.6512,134.23,134.18,5.9619]
[1719004469744,27.6512,134.23,134.17,5.9623]
[1719004471036,27.6512,134.23,134.18,5.962]
[1719004471344,21.6911,134.23,134.18,5.962]
[1719004472450,21.6911,134.23,134.19,5.9616]
[1719004473674,21.6911,134.23,134.18,5.9619]
[1719004474016,27.6512,134.23,134.18,5.9619]
[1719004476766,21.6911,134.23,134.17,14.9064]
[1719004476939,21.6911,134.23,134.2,5.961]
[1719004477761,21.6911,134.23,134.19,5.9616]
[1719004478780,27.6511,134.23,134.18,5.962]
[1719004478943,21.6911,134.23,134.14,14.9087]
[1719004479358,5.9608,134.21,134.16,5.9627]
[1719004480069,21.6911,134.23,134.17,5.9625]
[1719004480070,5.9605,134.22,134.17,5.9625]
[1719004480571,5.9608,134.21,134.16,5.9628]
[1719004480873,5.9605,134.22,134.16,5.9628]
[1719004481070,5.9608,134.21,134.16,5.9628]
[1719004482774,5.9604,134.22,134.17,5.9624]
[1719004484575,21.6911,134.23,134.16,14.9074]
[1719004484760,21.6911,134.23,134.19,5.9614]
[1719004486473,28.5266,134.26,134.21,5.9606]
[1719004486674,22.5676,134.26,134.18,14.9053]
[1719004486872,22.5676,134.26,134.22,5.96]
[1719004487975,22.5676,134.26,134.23,5.9599]
[1719004489154,22.5676,134.26,134.19,15.2433]
[1719004489573,28.5264,134.26,134.21,5.9605]
[1719004490289,22.5676,134.26,134.21,5.9605]
[1719004492275,28.5262,134.26,134.21,5.9605]
[1719004500384,22.5676,134.26,134.22,5.9603]
[1719004500561,28.5262,134.26,134.22,5.9603]
[1719004502186,28.5262,134.26,134.17,16.414]
[1719004502187,5.9604,134.22,134.17,5.9622]
[1719004502858,5.9604,134.22,134.18,5.9621]
[1719004503384,14.8977,134.25,134.19,5.9616]
[1719004503602,22.5676,134.26,134.18,15.0752]
[1719004503882,22.5676,134.26,134.25,5.959]
[1719004504198,21.4937,134.31,134.27,5.9581]
[1719004504412,21.4937,134.31,134.19,35.7739]
[1719004504413,21.4937,134.31,134.23,67.19]
[1719004504681,21.4937,134.31,134.29,5.9569]
[1719004505291,21.4937,134.31,134.28,5.9576]
[1719004506183,21.4937,134.31,134.27,5.958]
[1719004508689,21.4937,134.31,134.25,14.8965]
[1719004508884,0.8857401,134.34,134.26,0.34]
[1719004509194,6.8408401,134.34,134.29,5.957]
[1719004510568,5.9556,134.33,134.28,5.9575]
[1719004510867,5.956,134.32,134.27,5.9579]
[1719004511382,5.9575,134.29,134.24,5.9594]
[1719004511575,21.4937,134.3,134.23,5.9598]
[1719004511576,5.9577,134.28,134.23,5.9598]
[1719004511781,5.9577,134.28,134.19,14.9032]
[1719004511782,5.9581,134.27,134.22,5.9602]
[1719004511980,5.9578,134.28,134.22,5.9602]
[1719004512171,5.9581,134.27,134.22,5.9602]
[1719004512369,5.9578,134.28,134.23,5.9599]
[1719004513704,5.9574,134.29,134.24,5.9592]
[1719004517577,21.4937,134.3,134.21,14.9016]
[1719004517776,21.4937,134.3,134.21,5.9604]
[1719004517777,5.9586,134.26,134.21,5.9604]
[1719004518182,5.9583,134.27,134.22,5.9603]
[1719004521197,5.9579,134.28,134.23,5.9598]
[1719004523703,5.9581,134.27,134.22,5.9601]
[1719004527794,22.0421,134.25,134.21,5.9606]
[1719004527979,5.9612,134.2,134.15,5.9631]
[1719004528173,5.9612,134.2,134.13,16.5187]
[1719004528174,22.0421,134.25,134.1,27.65754975]
[1719004528374,5.9622,134.18,134.13,5.964]
[1719004528900,5.9618,134.19,134.13,5.964]
[1719004529106,5.9618,134.19,134.14,5.9638]
[1719004529804,5.9621,134.18,134.13,5.9643]
[1719004529985,6.0381,134.18,134.12,5.9647]
[1719004530301,12.0004,134.18,134.12,5.9647]
[1719004531087,12.0004,134.18,134.13,5.9642]
[1719004532205,6.0381,134.18,134.14,5.9639]
[1719004532510,6.0381,134.18,134.13,5.9641]
[1719004532892,6.0381,134.18,134.14,5.9636]
[1719004533389,5.9627,134.17,134.11,11.14415511]
[1719004533796,5.9631,134.16,134.11,11.14415511]
[1719004534507,5.9631,134.16,134.11,17.10925511]
[1719004535111,5.9631,134.16,134.11,11.13102507]
[1719004536311,5.9631,134.16,134.12,11.13102507]
[1719004538091,5.9631,134.16,134.12,11.13064748]
[1719004538495,5.9627,134.17,134.11,5.9651]
[1719004538685,5.9627,134.17,134.12,17.09587245]
[1719004539296,5.9627,134.17,134.13,11.13117245]
[1719004539707,15.4458,134.17,134.13,11.13117245]
[1719004539913,0.17,134.16,134.12,11.13117245]
[1719004540093,5.9643,134.13,134.12,11.13117245]
[1719004540295,5.9648,134.12,134.11,11.13117245]
[1719004540612,6.1348,134.12,134.11,11.13117245]
[1719004540806,6.1348,134.12,134.01,11.15465283]
[1719004540807,14.9164,134.08,134.01,11.15465283]
[1719004540992,6.3237,134.11,134.0,11.131172]
[1719004540993,15.4458,134.07,134.0,11.131172]
[1719004541330,15.4458,134.07,133.98,30.2816]
[1719004541331,15.4458,134.07,134.02,14.9222]
[1719004541690,15.4458,134.07,133.98,37.7641]
[1719004541691,15.4458,134.07,134.03,5.9686]
[1719004542501,21.4116,134.1,134.01,14.9232]
[1719004543219,5.9683,134.04,134.0,0.34]
[1719004543422,14.916,134.09,134.0,0.34]
[1719004543717,5.9673,134.07,134.01,6.1396]
[1719004544031,5.9667,134.08,134.02,5.9691]
[1719004544186,5.9671,134.07,134.02,5.9691]
[1719004544691,15.4458,134.1,134.03,5.9688]
[1719004544912,5.9663,134.09,134.03,5.9688]
[1719004545300,14.9154,134.09,133.98,37.7641]
[1719004545500,15.4458,134.1,133.99,15.0963]
[1719004545703,39.8183,134.15,133.99,15.0963]
[1719004545704,6.3237,134.15,134.1,5.9654]
[1719004545914,6.3237,134.15,134.11,5.9652]
[1719004546707,5.9641,134.14,134.08,5.9662]
[1719004546902,5.9641,134.14,134.09,5.9661]
[1719004547102,5.9658,134.1,134.04,5.9682]
[1719004547523,5.9658,134.1,134.05,5.9678]
[1719004547729,5.9649,134.12,134.02,14.923]
[1719004548027,5.9652,134.11,134.06,5.9674]
[1719004548417,5.9648,134.12,134.06,5.9674]
[1719004548797,5.9648,134.12,134.07,5.9668]
[1719004549002,5.9648,134.12,134.02,22.41]
[1719004549311,5.9648,134.12,134.07,5.967]
[1719004549512,14.9111,134.13,134.05,5.9678]
[1719004549707,14.9111,134.13,134.04,5.9682]
[1719004549708,5.966,134.1,134.04,5.9682]
[1719004549900,5.9664,134.09,134.03,5.9684]
[1719004550313,21.4116,134.1,134.05,5.9678]
[1719004550515,21.4116,134.1,134.04,5.9681]
[1719004550714,21.4116,134.1,134.05,5.9678]
[1719004551518,21.4116,134.1,134.04,5.9682]
[1719004552507,21.4116,134.1,134.05,5.9678]
[1719004552711,15.4458,134.1,134.05,5.9678]
[1719004552908,15.4458,134.1,134.06,5.9674]
[1719004553233,5.9657,134.1,134.02,14.9221]
[1719004553419,5.9657,134.1,134.05,5.9676]
[1719004554323,5.9653,134.11,134.06,5.9674]
[1719004554632,5.9655,134.11,134.06,5.9674]
[1719004555009,5.9655,134.11,134.05,5.9677]
[1719004555331,5.966,134.1,134.05,5.9677]
[1719004557328,5.966,134.1,134.04,5.9681]
[1719004557509,5.966,134.1,134.05,5.9679]
[1719004558327,5.966,134.1,134.04,5.9681]
[1719004558518,30.3568,134.13,134.02,14.9221]
[1719004558519,12.2901,134.09,134.02,14.9221]
[1719004559630,12.2901,134.09,134.04,5.9681]
[1719004559833,6.3237,134.09,134.05,5.9677]
[1719004561043,15.1391,134.07,134.01,5.9693]
[1719004561342,5.9675,134.06,134.01,5.9693]
[1719004561536,15.1391,134.07,134.02,5.9691]
[1719004561905,15.1391,134.07,133.99,14.9255]
[1719004561906,15.1391,134.07,134.03,5.9687]
[1719004562335,15.1391,134.07,133.98,16.6107]
[1719004562336,15.1391,134.07,134.04,5.9683]
[1719004562543,12.29,134.09,134.04,5.9683]
[1719004562841,12.2899,134.09,134.04,5.9683]
[1719004564731,6.3237,134.09,134.04,5.9683]
[1719004564932,6.3237,134.09,134.05,5.9677]
[1719004565834,6.3237,134.09,133.98,16.6107]
[1719004566011,5.9679,134.05,134.0,5.9698]
[1719004567835,5.9683,134.04,133.99,5.9704]
[1719004568345,21.9439,134.05,134.0,5.97]
[1719004568717,15.9759,134.05,133.95,61.3834]
[1719004568924,15.9759,134.05,133.96,20.0]
[1719004569215,5.9689,134.03,133.98,5.9708]
[1719004569442,5.9684,134.04,133.99,5.9704]
[1719004569648,21.9439,134.05,134.0,5.97]
[1719004569942,5.9683,134.04,133.99,5.9704]
[1719004570243,21.944,134.05,133.99,5.9704]
[1719004570445,5.9684,134.04,133.99,5.9704]
[1719004571242,5.9688,134.03,133.98,5.9708]
[1719004571634,5.9685,134.04,133.99,5.9705]
[1719004572152,5.9688,134.03,133.98,5.9708]
[1719004573042,5.9712,133.98,133.93,5.9732]
[1719004573339,6.0576,134.04,133.91,16.6034]
[1719004573545,6.0576,134.04,133.96,5.9717]
[1719004573740,14.9231,134.02,133.92,14.9333]
[1719004573941,5.9715,133.97,133.92,5.9736]
[1719004574149,5.9715,133.97,133.91,16.6034]
[1719004574150,5.9725,133.95,133.9,5.9742]
[1719004574449,5.9725,133.95,133.88,16.6034]
[1719004574827,5.972,133.96,133.9,5.9743]
[1719004575053,21.9476,133.97,133.91,5.9741]
[1719004575348,15.9759,133.97,133.9,14.9363]
[1719004575836,15.9759,133.97,133.88,31.542]
[1719004576035,5.9725,133.95,133.9,5.9743]
[1719004576343,5.9724,133.95,133.9,5.9743]
[1719004576752,5.972,133.96,133.9,5.9743]
[1719004577051,15.9759,133.97,133.9,5.9743]
[1719004577357,5.9724,133.95,133.89,5.9748]
[1719004577646,5.9724,133.95,133.9,5.9745]
[1719004577855,15.9759,133.97,133.91,5.974]
[1719004578048,21.9474,133.97,133.92,5.9735]
[1719004579154,21.9474,133.97,133.88,31.542]
[1719004579155,15.9759,133.97,133.9,5.9743]
[1719004579451,0.17,133.96,133.9,5.9743]
[1719004580036,5.9726,133.95,133.9,5.9743]
[1719004580353,6.1421,133.96,133.9,5.9743]
[1719004580562,15.9759,133.97,133.89,14.9366]
[1719004580737,21.9473,133.97,133.89,14.9366]
[1719004581063,15.9759,133.97,133.9,15.1055]
[1719004581574,15.9759,133.97,133.94,5.9726]
[1719004581725,15.9759,133.97,133.93,5.9732]
[1719004584254,21.9474,133.97,133.92,5.9735]